bitfinex-derivatives/quotes_SOLF0:USTF0_20230904
["timestamp","ask_amount","ask_price","bid_price","bid_amount"]
[1693861819924,123.4,19.374,19.362,123.4]
[1693861822328,123.4,19.371,19.359,123.4]
[1693861822527,123.4,19.371,19.36,0.32913583]
[1693861823227,123.4,19.374,19.361,123.4]
[1693861824423,123.4,19.377,19.365,123.4]
[1693861827630,123.4,19.38,19.368,123.4]
[1693861832534,123.4,19.38,19.373,0.06286238]
[1693861835234,123.4,19.376,19.373,0.06286238]
[1693861835535,123.4,19.376,19.363,123.4]
[1693861836124,123.4,19.373,19.362,21.7197]
[1693861836324,123.4,19.373,19.361,123.72913583]
[1693861836534,123.4,19.373,19.361,143.6298]
[1693861846840,123.4,19.37,19.361,20.2298]
[1693861847435,123.4,19.37,19.359,0.32913583]
[1693861847633,123.4,19.37,19.359,9.81682403]
[1693861847841,123.4,19.37,19.36,0.32913583]
[1693861850045,15.48,19.363,19.352,123.4]
[1693861850742,123.4,19.359,19.346,123.4]
[1693861850943,15.48,19.355,19.347,9.49370895]
[1693861851143,123.4,19.354,19.348,9.49370895]
[1693861851338,123.4,19.354,19.342,123.4]
[1693861851545,123.4,19.354,19.343,9.49387925]
[1693861851745,22.0748,19.358,19.347,123.4]
[1693861852047,123.4,19.36,19.347,123.4]
[1693861852048,123.4,19.36,19.348,9.49387925]
[1693861853448,123.4,19.36,19.347,123.4]
[1693861853948,123.4,19.36,19.348,9.49433133]
[1693861858844,123.4,19.358,19.348,9.49433133]
[1693861859049,123.4,19.358,19.349,9.49433133]
[1693861859356,123.4,19.358,19.35,9.49433133]
[1693861859653,123.4,19.358,19.345,123.4]
[1693861859848,123.4,19.358,19.346,9.49223134]
[1693861860548,123.4,19.355,19.346,9.49223134]
[1693861860856,15.5,19.351,19.347,9.49223134]
[1693861861151,15.5,19.351,19.341,22.0123]
[1693861861349,15.5,19.351,19.342,9.49590095]
[1693861861848,493.6,19.359,19.342,9.49590095]
[1693861862054,123.4,19.346,19.335,22.08]
[1693861862252,123.4,19.346,19.336,9.49810171]
[1693861862750,123.4,19.346,19.337,9.49810171]
[1693861862954,123.4,19.346,19.335,9.49810171]
[1693861863149,123.4,19.346,19.336,9.49810171]
[1693861863353,123.4,19.346,19.337,9.49810171]
[1693861863550,123.4,19.346,19.338,9.49810171]
[1693861863852,123.4,19.346,19.334,123.52597672]
[1693861864049,123.4,19.346,19.335,9.49918162]
[1693861864749,123.4,19.34,19.334,0.12597672]
[1693861865453,123.4,19.337,19.334,0.12597672]
[1693861867651,123.4,19.335,19.329,9.50363983]
[1693861867856,123.4,19.335,19.323,123.4]
[1693861868050,123.4,19.335,19.324,9.50591799]
[1693861869456,123.4,19.332,19.324,9.50591799]
[1693861869653,123.4,19.332,19.325,9.50591799]
[1693861869956,123.4,19.332,19.326,9.50591799]
[1693861870148,123.4,19.332,19.321,9.50591799]
[1693861870355,123.4,19.332,19.32,154.36846884]
[1693861870555,123.4,19.332,19.321,9.50602396]
[1693861872557,123.4,19.334,19.322,123.4]
[1693861872754,123.4,19.334,19.323,9.50602396]
[1693861878955,123.4,19.337,19.323,9.50602396]
[1693861879162,123.4,19.337,19.325,123.4]
[1693861879360,123.4,19.337,19.326,9.50602396]
[1693861892873,20.3283,19.342,19.331,123.4]
[1693861893069,20.3283,19.342,19.332,9.50602396]
[1693861893372,123.4,19.345,19.333,123.4]
[1693861893666,0.22727272,19.358,19.329,123.4]
[1693861893667,123.4,19.341,19.329,123.4]
[1693861893873,123.4,19.341,19.334,0.06298918]
[1693861895873,15.52,19.34,19.334,0.06298918]
[1693861907579,123.4,19.341,19.334,0.06298918]
[1693861907780,15.52,19.343,19.332,123.4]
[1693861907971,15.52,19.343,19.333,9.50319761]
[1693861908772,15.52,19.34,19.333,9.50319761]
[1693861908975,15.52,19.34,19.334,0.06298918]
[1693861909972,123.4,19.341,19.334,0.06298918]
[1693861910376,15.52,19.34,19.334,0.06298918]
[1693861912377,51.99273676,19.35,19.334,0.06298918]
[1693861912378,15.52,19.346,19.335,123.4]
[1693861912585,123.4,19.347,19.335,123.4]
[1693861912776,15.52,19.349,19.337,123.4]
[1693861912982,15.52,19.349,19.338,9.82947207]
[1693861913174,15.52,19.349,19.339,0.32913583]
[1693861914579,123.4,19.35,19.339,0.32913583]
[1693861914772,123.4,19.353,19.341,123.4]
[1693861915275,15.52,19.352,19.341,123.4]
[1693861917579,123.4,19.353,19.341,123.4]
[1693861918275,15.52,19.355,19.344,123.4]
[1693861918782,123.4,19.354,19.342,123.4]
[1693861920484,123.4,19.351,19.339,144.4183]
[1693861920681,123.4,19.351,19.34,9.49841363]
[1693861922582,123.4,19.354,19.342,123.4]
[1693861928000,123.4,19.354,19.343,9.49651623]
[1693861928202,123.4,19.354,19.342,123.4]
[1693861929099,123.4,19.354,19.343,9.49652335]
[1693861929301,123.4,19.354,19.342,123.4]
[1693861929602,123.4,19.354,19.343,9.49655721]
[1693861931002,123.4,19.356,19.344,123.4]
[1693861931297,15.5,19.359,19.348,123.4]
[1693861935105,15.5,19.359,19.349,20.4184]
[1693861935503,15.5,19.359,19.348,123.4]
[1693861935703,15.5,19.359,19.349,22.1412]
[1693861941605,123.4,19.36,19.349,22.1412]
[1693861944004,15.5,19.359,19.349,22.1412]
[1693861953118,111.19,19.358,19.351,111.19]
[1693861953324,111.19,19.359,19.351,111.19]
[1693861966936,15.5,19.366,19.351,111.19]
[1693861967133,15.5,19.383,19.357,111.19]
[1693861967437,111.19,19.365,19.357,139.22433146]
[1693861967830,15.5,19.377,19.357,28.03433146]
[1693861967831,0.22727272,19.376,19.357,28.03433146]
[1693861968037,111.19,19.363,19.357,28.03433146]
[1693861970643,15.5,19.359,19.353,111.19]
[1693861972536,15.72727272,19.374,19.353,111.19]
[1693861972843,111.19,19.363,19.355,111.19]
[1693861973142,111.19,19.361,19.354,139.46534036]
[1693861974740,15.5,19.36,19.354,139.46534036]
[1693861976844,111.19,19.361,19.354,139.46534036]
[1693861978944,15.5,19.36,19.354,139.46534036]
[1693861979146,15.5,19.36,19.355,111.19]
[1693861979946,111.19,19.361,19.355,111.19]
[1693861980145,111.19,19.362,19.355,111.19]
[1693861983141,111.19,19.363,19.356,111.19]
[1693861984447,15.5,19.36,19.354,28.27534036]
[1693861987143,111.19,19.361,19.354,28.27534036]
[1693861987549,15.5,19.363,19.357,111.19]
[1693861995153,111.19,19.364,19.357,111.19]
[1693861995353,15.5,19.363,19.357,111.19]
[1693861995654,15.5,19.361,19.355,21.6448]
[1693861997854,111.19,19.36,19.355,21.6448]
[1693861998254,111.19,19.36,19.353,111.19]
[1693862005358,111.19,19.363,19.356,111.19]
[1693862010865,111.19,19.363,19.354,27.5557967]
[1693862010866,15.5,19.37,19.362,111.19]
[1693862011270,111.19,19.371,19.362,111.19]
[1693862013273,111.19,19.371,19.364,111.19]
[1693862013670,15.5,19.37,19.364,111.19]
[1693862014575,15.5,19.367,19.36,111.19]
[1693862015880,111.19,19.365,19.358,111.19]
[1693862023280,111.19,19.367,19.36,111.19]
[1693862027886,15.49,19.367,19.361,111.19]
[1693862029085,111.19,19.368,19.361,111.19]
[1693862031389,111.19,19.371,19.364,111.19]
[1693862031682,111.19,19.374,19.367,111.19]
[1693862043196,111.19,19.376,19.368,111.19]
[1693862051499,111.19,19.372,19.356,22.0305]
[1693862051798,111.19,19.36,19.348,136.60440157]
[1693862051998,111.19,19.357,19.349,9.49202887]
[1693862052302,111.19,19.359,19.35,111.19]
[1693862052602,111.19,19.361,19.352,111.19]
[1693862052905,111.19,19.358,19.35,111.19]
[1693862053098,111.19,19.355,19.346,111.19]
[1693862053598,111.19,19.352,19.335,0.32913583]
[1693862053797,23.81388477,19.355,19.336,136.72695669]
[1693862053993,15.49,19.343,19.337,9.49631983]
[1693862054194,111.19,19.344,19.337,9.49631983]
[1693862054399,15.49,19.346,19.338,111.19]
[1693862054903,111.19,19.343,19.334,111.25298918]
[1693862055105,15.49,19.344,19.337,111.19]
[1693862055700,0.22727272,19.376,19.334,0.06298918]
[1693862055701,15.49,19.341,19.334,0.06298918]
[1693862055901,15.49,19.341,19.334,9.56359215]
[1693862056798,0.22727272,19.376,19.334,9.56359215]
[1693862057007,111.19,19.353,19.345,111.19]
[1693862057407,111.19,19.351,19.342,111.19]
[1693862057907,22.53928412,19.376,19.34,123.67]
[1693862057908,15.49,19.352,19.34,123.67]
[1693862058805,15.49,19.352,19.346,0.06295208]
[1693862059405,494.68,19.359,19.346,0.06295208]
[1693862059406,15.49,19.349,19.346,0.06295208]
[1693862060106,494.68,19.359,19.346,0.06295208]
[1693862060107,123.67,19.354,19.346,0.06295208]
[1693862064016,15.49,19.355,19.346,0.06295208]
[1693862065712,15.49,19.352,19.346,0.06295208]
[1693862066117,123.67,19.353,19.346,0.06295208]
[1693862066318,15.49,19.355,19.346,0.06295208]
[1693862067812,0.22727272,19.365,19.346,0.06295208]
[1693862068006,20.2795,19.366,19.346,0.06295208]
[1693862068007,123.67,19.363,19.35,123.67]
[1693862073125,123.67,19.363,19.351,123.67]
[1693862079231,15.5,19.363,19.351,123.67]
[1693862082635,123.67,19.36,19.348,123.67]
[1693862082836,123.67,19.36,19.349,9.49377851]
[1693862083335,123.67,19.36,19.348,123.67]
[1693862103545,123.67,19.363,19.351,123.67]
[1693862105556,123.67,19.368,19.354,123.67]
[1693862106461,123.67,19.368,19.355,21.2322]
[1693862106856,123.67,19.368,19.354,123.67]
[1693862107255,123.67,19.368,19.356,123.67]
[1693862107559,123.67,19.368,19.355,21.2322]
[1693862107560,15.5,19.37,19.359,123.67]
[1693862107756,146.20928412,19.376,19.362,123.67]
[1693862108151,146.20928412,19.376,19.363,21.2322]
[1693862108559,146.20928412,19.376,19.362,123.67]
[1693862108758,146.20928412,19.376,19.363,21.0118]
[1693862114566,22.53928412,19.376,19.366,123.67]
[1693862115965,15.5,19.377,19.366,123.67]
[1693862121876,123.67,19.376,19.363,123.67]
[1693862132887,24.32467647,19.379,19.36,20.7649]
[1693862133083,111.04,19.374,19.366,111.04]
[1693862153804,15.49,19.374,19.366,111.04]
[1693862158611,15.49,19.374,19.36,20.7649]
[1693862158612,111.04,19.377,19.37,111.04]
[1693862167417,135.36467647,19.379,19.371,111.04]
[1693862168820,111.04,19.372,19.35,0.32913583]
[1693862169021,111.04,19.365,19.356,111.04]
[1693862169321,15.49,19.368,19.346,0.06295208]
[1693862169515,15.49,19.368,19.347,136.69077619]
[1693862169717,0.22727272,19.367,19.347,136.69077619]
[1693862170015,111.04,19.349,19.347,136.69077619]
[1693862170216,111.04,19.352,19.347,136.69077619]
[1693862170518,15.49,19.347,19.346,0.06295208]
[1693862171114,111.04,19.353,19.346,0.06295208]
[1693862171320,111.04,19.357,19.349,111.04]
[1693862172117,111.04,19.36,19.351,111.04]
[1693862172522,15.49,19.355,19.348,111.04]
[1693862172721,111.04,19.359,19.351,111.04]
[1693862172922,15.49,19.363,19.346,0.06295208]
[1693862173112,15.49,19.363,19.35,123.57]
[1693862173318,123.57,19.361,19.348,123.57]
[1693862173926,123.57,19.358,19.346,0.06295208]
[1693862174517,494.28,19.359,19.346,0.06295208]
[1693862174718,123.57,19.35,19.346,0.06295208]
[1693862175320,123.57,19.347,19.346,0.06295208]
[1693862175719,123.57,19.347,19.331,123.57]
[1693862175921,123.57,19.344,19.331,123.57]
[1693862176122,123.57,19.342,19.329,21.7162]
[1693862176426,123.57,19.339,19.329,21.7162]
[1693862176720,123.57,19.339,19.319,0.32913583]
[1693862176924,123.57,19.339,19.326,123.57]
[1693862177324,123.57,19.343,19.312,21.5745]
[1693862177325,123.57,19.333,19.312,21.5745]
[1693862177520,123.57,19.333,19.313,9.50764324]
[1693862177717,123.57,19.333,19.32,123.57]
[1693862178119,123.57,19.333,19.312,21.5745]
[1693862178427,0.22727272,19.342,19.317,123.57]
[1693862178428,123.57,19.331,19.317,123.57]
[1693862178628,494.28,19.335,19.318,9.50765336]
[1693862178826,123.57,19.323,19.318,9.50765336]
[1693862179018,123.57,19.323,19.307,0.12615646]
[1693862179019,123.57,19.327,19.307,0.12615646]
[1693862179226,123.57,19.327,19.308,0.32913583]
[1693862179524,123.57,19.327,19.307,0.12615646]
[1693862179525,123.57,19.321,19.307,0.12615646]
[1693862179724,144.18161095,19.322,19.307,0.12615646]
[1693862179918,494.28,19.335,19.309,123.57]
[1693862180224,123.57,19.329,19.314,123.57]
[1693862180421,123.57,19.331,19.316,123.57]
[1693862180725,123.57,19.333,19.319,123.57]
[1693862181024,123.57,19.335,19.321,123.57]
[1693862181226,278.3449095,19.34,19.324,123.57]
[1693862181427,278.3449095,19.34,19.332,123.57]
[1693862181925,123.57,19.342,19.32,0.32913583]
[1693862182121,123.57,19.342,19.329,123.57]
[1693862182325,123.57,19.34,19.326,123.57]
[1693862182524,123.57,19.337,19.324,123.57]
[1693862182728,123.57,19.33,19.32,9.5049907]
[1693862182926,227.33,19.331,19.32,9.5049907]
[1693862183121,227.33,19.336,19.32,236.8349907]
[1693862183422,227.33,19.333,19.321,9.50757911]
[1693862183627,227.33,19.333,19.32,227.33]
[1693862184026,0.22727272,19.342,19.32,227.33]
[1693862184332,227.33,19.341,19.327,227.33]
[1693862185325,227.33,19.338,19.324,227.33]
[1693862186224,909.32,19.343,19.319,0.32913583]
[1693862186225,227.33,19.336,19.322,227.33]
[1693862186825,227.33,19.336,19.311,0.32913583]
[1693862187029,227.33,19.326,19.311,9.51089741]
[1693862187229,227.33,19.334,19.314,227.33]
[1693862187430,227.33,19.329,19.314,227.33]
[1693862188231,227.33,19.329,19.309,0.32913583]
[1693862188232,227.33,19.326,19.311,227.33]
[1693862188430,227.33,19.323,19.308,227.33]
[1693862188933,227.33,19.323,19.309,9.51261458]
[1693862189131,24.1060312,19.327,19.313,227.33]
[1693862189330,24.1060312,19.327,19.314,9.51261458]
[1693862189633,227.33,19.325,19.314,9.51261458]
[1693862189838,227.33,19.319,19.304,227.33]
[1693862190032,227.33,19.319,19.305,9.51458373]
[1693862191130,227.33,19.317,19.305,9.51458373]
[1693862191331,933.4260312,19.327,19.305,9.51458373]
[1693862191532,227.33,19.308,19.291,0.32913583]
[1693862191738,227.33,19.302,19.287,30.80798818]
[1693862191926,227.33,19.3,19.288,9.51818818]
[1693862192324,227.33,19.296,19.284,9.51818818]
[1693862192525,227.33,19.294,19.284,9.51818818]
[1693862192735,227.33,19.294,19.28,0.32913583]
[1693862192736,227.33,19.297,19.289,9.51818818]
[1693862192930,93.3,19.299,19.289,9.51818818]
[1693862193234,93.3,19.302,19.29,9.84732401]
[1693862193534,373.2,19.311,19.29,9.51818818]
[1693862193535,93.3,19.3,19.29,9.51818818]
[1693862193735,93.3,19.3,19.284,9.51818818]
[1693862194131,93.3,19.297,19.285,9.51818818]
[1693862194335,93.3,19.297,19.286,9.51818818]
[1693862194832,93.3,19.297,19.287,9.51818818]
[1693862195134,93.3,19.297,19.288,9.51818818]
[1693862195335,93.3,19.297,19.278,9.84732401]
[1693862195535,93.3,19.297,19.279,0.32913583]
[1693862195735,93.3,19.3,19.28,93.3]
[1693862195938,93.3,19.3,19.281,9.84732401]
[1693862196139,93.3,19.303,19.283,93.3]
[1693862196331,93.3,19.301,19.284,9.51818818]
[1693862196533,93.3,19.301,19.285,9.51818818]
[1693862196841,93.3,19.301,19.286,0.32913583]
[1693862197336,93.3,19.298,19.287,0.32913583]
[1693862197933,93.3,19.298,19.288,0.32913583]
[1693862198136,93.3,19.298,19.288,9.84732401]
[1693862198342,93.3,19.298,19.289,9.84732401]
[1693862198541,93.3,19.298,19.29,0.32913583]
[1693862198841,93.3,19.298,19.29,9.84732401]
[1693862199041,93.3,19.298,19.291,0.32913583]
[1693862199241,0.22727272,19.305,19.283,9.51818818]
[1693862199440,93.3,19.286,19.27,0.32913583]
[1693862199635,93.3,19.286,19.27,9.8568251]
[1693862199839,93.3,19.286,19.271,0.32913583]
[1693862200240,93.3,19.286,19.271,9.52768927]
[1693862200538,93.3,19.286,19.272,9.52768927]
[1693862200843,93.3,19.286,19.273,9.52768927]
[1693862201038,93.3,19.286,19.269,9.8568251]
[1693862201237,93.3,19.286,19.274,9.52768927]
[1693862201443,93.3,19.294,19.275,0.32913583]
[1693862201641,93.3,19.294,19.275,9.8568251]
[1693862201836,93.3,19.288,19.275,9.52768927]
[1693862202338,93.3,19.288,19.27,0.32913583]
[1693862202339,93.3,19.288,19.276,9.52768927]
[1693862202741,93.3,19.288,19.269,9.8568251]
[1693862202935,93.3,19.288,19.27,9.8568251]
[1693862203138,93.3,19.288,19.271,9.8568251]
[1693862203342,93.3,19.283,19.272,9.52768927]
[1693862203640,93.3,19.274,19.268,0.18961467]
[1693862203845,93.3,19.274,19.273,9.52768927]
[1693862204341,93.3,19.274,19.268,0.18961467]
[1693862205349,373.2,19.295,19.268,0.18961467]
[1693862205350,93.3,19.282,19.269,0.32913583]
[1693862206748,93.3,19.286,19.269,9.8568251]
[1693862207056,93.3,19.289,19.27,0.32913583]
[1693862207245,93.3,19.289,19.27,9.8568251]
[1693862207452,93.3,19.289,19.271,0.32913583]
[1693862207952,93.3,19.291,19.272,93.3]
[1693862208145,93.3,19.294,19.275,93.3]
[1693862208346,93.3,19.294,19.276,9.8568251]
[1693862208552,93.3,19.294,19.277,0.32913583]
[1693862209048,93.3,19.291,19.277,0.32913583]
[1693862209248,93.3,19.294,19.277,0.32913583]
[1693862210348,93.3,19.297,19.278,93.3]
[1693862210550,93.3,19.299,19.279,9.8568251]
[1693862210853,105.6161,19.302,19.282,93.3]
[1693862211045,105.6161,19.302,19.283,9.8568251]
[1693862211251,105.6161,19.302,19.284,0.32913583]
[1693862212455,15.55,19.301,19.284,0.32913583]
[1693862214458,15.55,19.304,19.284,0.32913583]
[1693862214857,15.55,19.307,19.287,93.3]
[1693862215064,15.55,19.304,19.288,9.8568251]
[1693862215255,15.55,19.304,19.289,0.32913583]
[1693862215855,15.55,19.307,19.289,0.32913583]
[1693862220457,15.55,19.323,19.291,93.3]
[1693862220657,12.3449,19.325,19.292,9.52768927]
[1693862220658,15.55,19.308,19.292,9.52768927]
[1693862220863,93.3,19.307,19.292,31.72498927]
[1693862221055,93.3,19.307,19.293,9.52768927]
[1693862221664,15.55,19.309,19.293,9.52768927]
[1693862221963,15.55,19.312,19.293,9.52768927]
[1693862223061,15.55,19.309,19.293,9.52768927]
[1693862223361,0.22727272,19.32,19.293,9.52768927]
[1693862223362,15.55,19.305,19.293,9.52768927]
[1693862223768,93.3,19.309,19.293,9.52768927]
[1693862224060,93.3,19.312,19.293,9.52768927]
[1693862225464,108.85,19.318,19.301,0.82424492]
[1693862226862,108.85,19.318,19.298,93.3]
[1693862227162,108.85,19.318,19.299,9.51898399]
[1693862228362,15.55,19.314,19.299,9.51898399]
[1693862228562,93.3,19.312,19.295,9.51898399]
[1693862228869,93.3,19.312,19.296,9.51967673]
[1693862229066,93.3,19.312,19.293,9.51967673]
[1693862229261,93.3,19.312,19.297,9.51967673]
[1693862229458,93.3,19.314,19.298,9.84881256]
[1693862229666,93.3,19.314,19.295,9.84881256]
[1693862229866,93.3,19.314,19.296,9.84881256]
[1693862230061,93.3,19.314,19.297,0.32913583]
[1693862230258,93.3,19.314,19.295,9.51967673]
[1693862230259,93.3,19.314,19.296,0.32913583]
[1693862231070,93.3,19.314,19.297,93.3]
[1693862231270,93.3,19.314,19.298,9.84881256]
[1693862232173,15.55,19.318,19.3,93.3]
[1693862232373,15.55,19.318,19.301,9.51967673]
[1693862232673,15.55,19.318,19.301,30.94427673]
[1693862232870,15.55,19.318,19.302,9.51967673]
[1693862234570,15.55,19.318,19.304,93.3]
[1693862234875,12.3437,19.325,19.307,93.3]
[1693862235067,93.3,19.326,19.308,9.51967673]
[1693862235574,12.3437,19.325,19.31,93.3]
[1693862235965,15.55,19.328,19.31,93.3]
[1693862236669,15.55,19.328,19.311,9.5135319]
[1693862237272,15.55,19.328,19.313,93.3]
[1693862237463,15.55,19.329,19.313,93.3]
[1693862238370,15.55,19.329,19.314,22.063]
[1693862238570,15.55,19.332,19.314,22.063]
[1693862239278,15.55,19.332,19.315,0.32913583]
[1693862239471,93.3,19.336,19.317,93.3]
[1693862239970,93.3,19.336,19.317,93.62913583]
[1693862240171,93.3,19.336,19.317,93.3]
[1693862242171,93.3,19.336,19.315,0.32913583]
[1693862242172,93.3,19.336,19.319,93.3]
[1693862243174,15.55,19.339,19.319,93.3]
[1693862244371,93.3,19.343,19.325,93.3]
[1693862244679,93.3,19.343,19.326,0.32913583]
[1693862244877,93.3,19.343,19.326,20.78793583]
[1693862245077,93.3,19.343,19.326,0.32913583]
[1693862251478,93.3,19.346,19.328,93.3]
[1693862252679,93.3,19.346,19.329,21.2957]
[1693862255484,93.3,19.346,19.312,0.32913583]
[1693862255688,93.3,19.341,19.322,93.3]
[1693862257792,93.3,19.338,19.319,93.3]
[1693862257987,227.17,19.336,19.321,227.17]
[1693862265399,15.52,19.333,19.321,227.17]
[1693862266997,15.52,19.33,19.317,227.17]
[1693862267198,227.17,19.328,19.314,227.17]
[1693862267400,227.17,19.323,19.309,227.17]
[1693862267602,227.17,19.323,19.31,9.5133495]
[1693862268100,12.2951,19.322,19.31,9.5133495]
[1693862268490,227.17,19.323,19.31,9.5133495]
[1693862269295,227.17,19.323,19.309,227.17]
[1693862269498,227.17,19.323,19.31,9.51397608]
[1693862269698,227.17,19.323,19.309,227.17]
[1693862269898,227.17,19.323,19.31,9.51389335]
[1693862270894,227.17,19.323,19.309,227.17]
[1693862273003,227.17,19.323,19.31,9.51402307]
[1693862275708,227.17,19.323,19.309,227.17]
[1693862276112,227.17,19.323,19.31,9.51392348]
[1693862276304,227.17,19.323,19.309,227.17]
[1693862277811,227.17,19.326,19.313,227.17]
[1693862279012,15.53,19.323,19.31,227.17]
[1693862280410,227.17,19.327,19.314,227.17]
[1693862280803,227.17,19.327,19.315,20.0885]
[1693862282208,227.17,19.327,19.314,227.17]
[1693862282404,227.17,19.33,19.316,227.17]
[1693862282607,227.17,19.33,19.316,227.49913583]
[1693862282913,227.17,19.33,19.316,227.17]
[1693862283415,227.17,19.328,19.314,227.49913583]
[1693862283612,227.17,19.328,19.315,0.32913583]
[1693862284409,227.17,19.326,19.313,21.7487]
[1693862285614,227.17,19.32,19.313,21.7487]
[1693862285816,227.17,19.32,19.306,227.49913583]
[1693862286018,227.17,19.32,19.307,30.42287615]
[1693862286212,227.17,19.32,19.308,9.51407615]
[1693862287019,227.17,19.315,19.3,227.17]
[1693862287218,227.17,19.315,19.301,9.51467102]
[1693862293720,227.17,19.312,19.301,9.51467102]
[1693862296822,227.17,19.315,19.301,236.68467102]
[1693862297023,227.17,19.315,19.302,9.51467102]
[1693862299319,227.17,19.319,19.304,227.17]
[1693862299615,227.17,19.319,19.307,227.17]
[1693862299822,227.17,19.319,19.308,9.51467102]
[1693862303122,227.17,19.321,19.308,9.51467102]
[1693862303427,227.17,19.323,19.309,227.17]
[1693862303624,242.7,19.323,19.309,227.17]
[1693862303825,242.7,19.323,19.31,20.2067]
[1693862306321,12.332,19.324,19.312,227.17]
[1693862306727,227.17,19.326,19.313,20.2067]
[1693862310335,15.53,19.33,19.317,227.17]
[1693862310632,15.53,19.333,19.32,227.17]
[1693862311030,15.53,19.334,19.321,20.9274]
[1693862311628,15.53,19.334,19.32,227.17]
[1693862311833,15.53,19.334,19.321,20.9274]
[1693862312028,15.53,19.334,19.32,227.17]
[1693862312332,15.53,19.334,19.321,20.9274]
[1693862312825,15.53,19.334,19.32,227.17]
[1693862313030,15.53,19.334,19.321,20.0379]
[1693862313230,15.53,19.334,19.323,227.17]
[1693862313435,27.8451,19.334,19.323,227.17]
[1693862313631,15.53,19.334,19.323,227.17]
[1693862317931,15.53,19.334,19.323,123.89]
[1693862318442,15.53,19.336,19.325,123.89]
[1693862321338,15.53,19.334,19.322,123.89]
[1693862323240,123.89,19.332,19.32,123.89]
[1693862333159,123.89,19.336,19.324,123.89]
[1693862344068,123.89,19.33,19.319,21.0956]
[1693862344675,123.89,19.33,19.318,123.89]
[1693862349275,123.89,19.333,19.321,123.89]
[1693862349478,123.89,19.336,19.324,123.89]
[1693862349982,123.89,19.336,19.325,21.2866]
[1693862351986,123.89,19.339,19.327,123.89]
[1693862360291,15.52,19.336,19.325,145.1766]
[1693862368496,15.52,19.339,19.328,123.89]
[1693862373000,111.46,19.338,19.331,111.46]
[1693862373200,15.52,19.336,19.33,111.46]
[1693862378401,15.52,19.336,19.329,111.46]
[1693862380208,15.52,19.336,19.33,20.7164]
[1693862381308,111.46,19.337,19.33,20.7164]
[1693862383105,111.46,19.338,19.331,111.46]
[1693862383302,111.46,19.338,19.33,20.7164]
[1693862383303,0.22727272,19.348,19.33,20.7164]
[1693862383508,15.52,19.349,19.336,111.46]
[1693862383705,111.46,19.344,19.336,111.46]
[1693862385618,111.46,19.347,19.339,111.46]
[1693862388009,123.71,19.349,19.337,123.71]
[1693862389716,15.52,19.351,19.34,123.71]
[1693862390115,15.52,19.351,19.341,22.0578]
[1693862394410,123.71,19.348,19.334,123.71]
[1693862403126,123.71,19.346,19.332,123.71]